fUST/lending_fUST_20250716
["ID","MTS","AMOUNT","RATE_DAILY","PERIOD"]
[372335702,1752595847113,-10263.84492428,0.000228,7]
[372335703,1752595847123,-9202.83429085,0.000228,2]
[372335704,1752595847286,548.36,0.00020892,2]
[372335705,1752595847544,548.36,0.00021166,2]
[372335706,1752595847890,360.4286697,0.0002144,2]
[372335709,1752595951085,200.0,0.00026589,120]
[372335716,1752596136020,200.0,0.00025793,120]
[372335719,1752596341607,825.009,0.00027397,120]
[372335725,1752596590124,-300.0,0.00020037,2]
[372335726,1752596590156,-300.0,0.00020037,2]
[372335727,1752596590186,-460.0,0.00020038,2]
[372335728,1752596590216,-487.64,0.00020038,2]
[372335729,1752596590247,-460.0,0.00020038,2]
[372335730,1752596590278,-457.414481,0.00020038,2]
[372335731,1752596590449,-817.35,0.00020038,2]
[372335732,1752596590482,-315.141038,0.00020038,2]
[372335733,1752596590520,-144.858962,0.00020038,2]
[372335734,1752596590551,-460.0,0.00020312,2]
[372335735,1752596590583,-487.64,0.00020312,2]
[372335736,1752596590614,-345.0280298,0.00020312,2]
[372335737,1752596590646,-817.35,0.00020312,2]
[372335738,1752596590679,-460.0,0.00020312,2]
[372335739,1752596590709,-460.0,0.00020586,2]
[372335740,1752596590739,-487.64,0.00020586,2]
[372335741,1752596591049,-200.138962,0.00020586,2]
[372335742,1752596591064,-14.9160164,0.00020586,2]
[372335748,1752596694410,-160.0,0.00020033,2]
[372335749,1752596694443,-602.2950216,0.00020586,2]
[372335750,1752596694473,-346.70311645,0.00020586,2]
[372335751,1752596694533,-1412.0387239,0.00020586,2]
[372335752,1752596694576,-1084.71036448,0.00020586,2]
[372335753,1752596694599,-1460.61427104,0.00020586,2]
[372335754,1752596738316,-2182.7036039,0.00020696,2]
[372335755,1752596738339,-460.0,0.0002086,2]
[372335756,1752596738362,-793.32420916,0.0002086,2]
[372335757,1752596749130,-24.02579084,0.0002086,2]
[372335758,1752596749165,-460.0,0.00020892,2]
[372335759,1752596749201,-22.00841832,0.00021,7]
[372335760,1752596749277,-987.93158168,0.00021,7]
[372335761,1752596769472,160.238894,0.00013699,2]
[372335763,1752596830086,-525.51022752,0.00021016,2]
[372335764,1752596830107,-468.75,0.00021016,2]
[372335765,1752596830128,-175.462843,0.00021057,2]
[372335766,1752596830149,-177.06933509,0.00021162,2]
[372335767,1752596836079,-282.93066491,0.00021162,2]
[372335768,1752596836101,-460.0,0.00021166,2]
[372335769,1752596836123,-460.0,0.00021407,2]
[372335770,1752596836144,-460.0,0.00021436,2]
[372335771,1752596836165,-460.0,0.0002144,2]
[372335772,1752596836185,-460.0,0.00021681,2]
[372335773,1752596836206,-300.0,0.00021708,2]
[372335774,1752596836226,-233.0719702,0.00021709,2]
[372335775,1752596836249,-460.0,0.00021709,2]
[372335776,1752596836272,-460.0,0.00021709,2]
[372335777,1752596836293,-460.0,0.00021709,2]
[372335778,1752596836315,-460.0,0.00021709,2]
[372335779,1752596836336,-496.60352857,0.00021709,2]
[372335780,1752596836359,-373.74780621,0.00021709,2]
[372335781,1752596842147,-86.25219379,0.00021709,2]
[372335782,1752596842168,-460.0,0.0002171,2]
[372335783,1752596842190,-460.0,0.00021714,2]
[372335784,1752596842212,-460.0,0.00021955,2]
[372335785,1752596842234,-460.0,0.00021983,2]
[372335786,1752596842257,-460.0,0.00021983,2]
[372335787,1752596842279,-460.0,0.00021983,2]
[372335788,1752596842300,-460.0,0.00021983,2]
[372335789,1752596842320,-460.0,0.00021983,2]
[372335790,1752596842340,-514.41073512,0.00021984,2]
[372335791,1752596842361,-93.96503599,0.00022,2]
[372335794,1752596903660,109611.0,0.000273,120]
[372335795,1752596922947,453.0,0.00025396,120]
[372335796,1752596924006,14362.16143951,0.00025396,120]
[372335831,1752597032721,-300.0,0.00019999,2]
[372335833,1752597032732,-5284.15834149,0.0002,20]
[372335978,1752597034144,-50208.89277661,0.0002,20]
[372335980,1752597034155,-763.04404099,0.00021,3]
[372336229,1752597038667,-288.12,0.00019999,2]
[372336230,1752597038779,-171.88,0.00019999,2]
[372336231,1752597038789,-460.0,0.00019999,2]
[372336232,1752597038799,-460.0,0.00020038,2]
[372336233,1752597038809,-460.0,0.00020273,2]
[372336234,1752597038819,-2499.85320199,0.00021,3]
[372336235,1752597038829,-460.0,0.00021681,2]
[372336236,1752597038839,-460.0,0.00021709,2]
[372336237,1752597038849,-460.0,0.00021709,2]
[372336238,1752597038859,-460.0,0.00021709,2]
[372336239,1752597038868,-460.0,0.00021709,2]
[372336240,1752597038879,-460.0,0.00021709,2]
[372336241,1752597038889,-160.0,0.00021709,2]
[372336242,1752597038898,-460.0,0.00021709,2]
[372336243,1752597038908,-460.0,0.00021709,2]
[372336244,1752597038918,-460.0,0.00021709,2]
[372336245,1752597038927,-227.14302359,0.000219,2]
[372336246,1752597038941,-772.85697641,0.000219,2]
[372336247,1752597038952,-113.88926499,0.00021955,2]
[372336248,1752597039079,-346.11073501,0.00021955,2]
[372336249,1752597039090,-512.46,0.00021955,2]
[372336250,1752597039099,-460.0,0.00021955,2]
[372336251,1752597039109,-460.0,0.00021983,2]
[372336252,1752597039118,-460.0,0.00021983,2]
[372336253,1752597039128,-460.0,0.00021983,2]
[372336254,1752597039137,-460.0,0.00021983,2]
[372336255,1752597039146,-460.0,0.00021983,2]
[372336256,1752597039155,-104.40896401,0.00022,2]
[372336257,1752597039165,-170.0,0.00022,2]
[372336258,1752597039175,-500.0,0.00022229,2]
[372336259,1752597039184,-460.0,0.00022229,2]
[372336260,1752597039196,-512.46,0.00022229,2]
[372336261,1752597039205,-460.0,0.00022229,2]
[372336262,1752597039215,-460.0,0.00022229,2]
[372336263,1752597039225,-460.0,0.00022257,2]
[372336264,1752597039234,-460.0,0.00022257,2]
[372336265,1752597039244,-460.0,0.00022257,2]
[372336266,1752597039253,-199.26650875,0.00022257,2]
[372336361,1752597040983,-696.81211903,0.000219,2]
[372336377,1752597041125,-303.18788097,0.000219,2]
[372336379,1752597041134,-182.88189291,0.00022257,2]
[372336381,1752597041146,-77.85159834,0.00022257,2]
[372336383,1752597041155,-305.34062886,0.00022257,2]
[372336385,1752597041166,-154.65937114,0.00022257,2]
[372336387,1752597041175,-404.44424,0.00022344,8]
[372336389,1752597041184,-207.4,0.00022476,2]
[372336391,1752597041195,-460.0,0.0002248,2]
[372336394,1752597041207,-460.0,0.0002248,2]
[372336396,1752597041217,-681.12,0.00022481,2]
[372336398,1752597041226,-460.0,0.00022489,2]
[372336400,1752597041236,-460.0,0.00022489,2]
[372336402,1752597041245,-460.0,0.00022489,2]
[372336404,1752597041255,-475.11,0.00022489,2]
[372336406,1752597041264,-460.0,0.00022489,2]
[372336408,1752597041274,-460.0,0.00022503,2]
[372336410,1752597041283,-512.46,0.00022503,2]
[372336412,1752597041293,-460.0,0.00022531,2]
[372336414,1752597041303,-460.0,0.00022531,2]
[372336416,1752597041312,-460.0,0.00022531,2]
[372336418,1752597041321,-460.0,0.00022531,2]
[372336420,1752597041330,-460.0,0.00022531,2]
[372336422,1752597041340,-429.0948676,0.00022732,2]
[372336424,1752597041349,-681.12,0.00022755,2]
[372336442,1752597041516,-475.11,0.00022763,2]
[372336445,1752597041534,-460.0,0.00022777,2]
[372336447,1752597041544,-512.46,0.00022777,2]
[372336449,1752597041554,-7749.36570915,0.000228,2]
[372336451,1752597041563,-460.0,0.00022805,2]
[372336453,1752597041572,-460.0,0.00022805,2]
[372336455,1752597041581,-460.0,0.00022805,2]
[372336457,1752597041591,-263.21,0.00022805,2]
[372336459,1752597041602,-151.0,0.00022973,2]
[372336461,1752597041612,-515.54,0.0002298,10]
[372336464,1752597041622,-429.61,0.0002298,10]
[372336466,1752597041632,-2384.29581212,0.0002299,2]
[372336468,1752597041644,-755.07116551,0.0002299,2]
[372336649,1752597045298,-460.0,0.00019999,2]
[372336650,1752597045309,-125.18609412,0.00019999,2]
[372336651,1752597045321,-334.81390588,0.00019999,2]
[372336652,1752597045331,-70.54454988,0.00020038,2]
[372336653,1752597045355,-389.45545012,0.00020038,2]
[372336654,1752597045365,-43.2834734,0.00020038,2]
[372336655,1752597045376,-416.7165266,0.00020038,2]
[372336656,1752597045385,-460.0,0.00020038,2]
[372336657,1752597045395,-460.0,0.00020312,2]
[372336658,1752597045404,-460.0,0.00020312,2]
[372336659,1752597045413,-460.0,0.00020312,2]
[372336660,1752597045422,-460.0,0.00021709,2]
[372336661,1752597045431,-460.0,0.00021709,2]
[372336662,1752597045440,-259.3,0.00021983,2]
[372336663,1752597045450,-460.0,0.00021983,2]
[372336664,1752597045460,-460.0,0.00022489,2]
[372336665,1752597045470,-500.0,0.00022754,2]
[372336666,1752597045480,-500.0,0.00022754,2]
[372336667,1752597045489,-499.99999999,0.00022754,2]
[372336668,1752597045499,-500.0,0.00022754,2]
[372336669,1752597045509,-500.0,0.00022754,2]
[372336670,1752597045519,-500.0,0.00022754,2]
[372336671,1752597045529,-500.0,0.00022754,2]
[372336672,1752597045538,-5138.15420275,0.0002299,2]
[372336690,1752597228348,500.0,0.00027397,120]
[372336704,1752597917307,161.432788,0.00013699,2]
[372336706,1752597944140,-317.1594157,0.00018991,2]
[372336707,1752597944163,-304.6896548,0.00019006,2]
[372336708,1752597944184,-173.063546,0.00019178,2]
[372336709,1752597944207,-1186.69069349,0.00019445,2]
[372336710,1752597990145,5000.0,0.00024658,60]
[372336711,1752598025206,-13.30930651,0.00019445,2]
[372336712,1752598025228,-1527.61465828,0.00019446,2]
[372336713,1752598046076,-5856.24018152,0.00019446,2]
[372336714,1752598046272,-99.57856741,0.00019962,2]
[372336716,1752598148152,-1304.50538754,0.00019178,2]
[372336717,1752598151157,-614.50107586,0.00019178,2]
[372336725,1752598231899,-582.88350679,0.00019896,2]
[372336726,1752598231909,-156.26382676,0.00019962,2]
[372336727,1752598231919,-1200.0,0.00019969,2]
[372336728,1752598231929,-513.88759956,0.00019973,2]
[372336729,1752598231938,-191.0,0.00019987,2]
[372336731,1752598231950,-7.19715109,0.00019987,2]
[372336734,1752598231963,-292.80284891,0.00019987,2]
[372336736,1752598231972,-300.0,0.00019987,2]
[372336738,1752598231982,-460.0,0.00019988,2]
[372336740,1752598231992,-460.0,0.00019988,2]
[372336742,1752598232002,-540.75,0.00019988,2]
[372336744,1752598232013,-460.0,0.00019988,2]
[372336745,1752598232024,-460.0,0.00019988,2]
[372336746,1752598232034,-460.41031252,0.00019988,2]
[372336747,1752598232045,-298.87,0.00019989,3]
[372336748,1752598232058,-65.77054161,0.00019989,3]
[372336749,1752598237961,-460.0,0.00019988,2]
[372336750,1752598237970,-476.96,0.00019989,3]
[372336751,1752598237981,-353.90945839,0.00019989,3]
[372336752,1752598237990,-460.0,0.00019994,2]
[372336753,1752598237999,-460.0,0.00019994,2]
[372336754,1752598238009,-460.0,0.00019994,2]
[372336755,1752598238018,-368.414591,0.00019994,2]
[372336756,1752598238029,-500.0,0.00019996,2]
[372336757,1752598238039,-500.0,0.00019996,2]
[372336758,1752598238051,-460.0,0.00019996,2]
[372336759,1752598238062,-237.73417134,0.00019996,2]
[372336760,1752598238076,-222.26582866,0.00019996,2]
[372336761,1752598238085,-306.52174715,0.00019996,2]
[372336762,1752598238098,-153.47825285,0.00019996,2]
[372336763,1752598238107,-186.99205338,0.00019996,2]
[372336764,1752598238133,-5.88648,0.00019996,2]
[372336765,1752598238146,-267.12146662,0.00019996,2]
[372336766,1752598238156,-460.0,0.00019996,2]
[372336767,1752598238166,-259.21299603,0.00019996,2]
[372336768,1752598238176,-460.0,0.00019996,2]
[372336769,1752598238185,-460.0,0.00019996,2]
[372336770,1752598238195,-460.60545118,0.00019996,2]
[372336771,1752598238206,-460.0,0.00019996,2]
[372336772,1752598238215,-460.0,0.00019996,2]
[372336773,1752598238225,-460.0,0.00019996,2]
[372336774,1752598238235,-460.0,0.00019996,2]
[372336775,1752598238244,-460.0,0.00019996,2]
[372336776,1752598238253,-460.0,0.00019996,2]
[372336777,1752598238263,-460.0,0.00019996,2]
[372336778,1752598238272,-550.03,0.00019996,2]
[372336779,1752598238283,-460.98367471,0.00019996,2]
[372336780,1752598238292,-460.0,0.00019996,2]
[372336781,1752598238302,-460.0,0.00019996,2]
[372336782,1752598238312,-460.0,0.00019996,2]
[372336783,1752598238321,-629.98,0.00019996,2]
[372336784,1752598238331,-460.0,0.00019996,2]
[372336785,1752598238341,-460.0,0.00019996,2]
[372336786,1752598238350,-515.83678607,0.00019996,2]
[372336787,1752598238360,-460.0,0.00019996,2]
[372336788,1752598238369,-460.0,0.00019996,2]
[372336789,1752598238380,-321.21435485,0.00019996,2]
[372336790,1752598238392,-138.78564515,0.00019996,2]
[372336791,1752598238401,-460.0,0.00019996,2]
[372336792,1752598238410,-460.0,0.00019996,2]
[372336793,1752598238419,-460.0,0.00019996,2]
[372336794,1752598238430,-460.0,0.00019996,2]
[372336795,1752598238448,-460.0,0.00019996,2]
[372336796,1752598238458,-460.0,0.00019996,2]
[372336797,1752598238468,-223.21493819,0.00019996,2]
[372336798,1752598238478,-460.0,0.00019996,2]
[372336799,1752598238487,-460.0,0.00019996,2]
[372336800,1752598238498,-460.0,0.00019996,2]
[372336801,1752598238508,-460.0,0.00019996,2]
[372336802,1752598238517,-460.0,0.00019996,2]
[372336803,1752598238529,-460.0,0.00019996,2]
[372336804,1752598238539,-460.0,0.00019996,2]
[372336805,1752598238669,-460.0,0.00019996,2]
[372336806,1752598238680,-460.0,0.00019996,2]
[372336807,1752598238690,-460.0,0.00019996,2]
[372336808,1752598238700,-461.4707293,0.00019996,2]
[372336809,1752598238710,-460.0,0.00019996,2]
[372336810,1752598238720,-460.20761902,0.00019996,2]
[372336811,1752598238729,-460.0,0.00019996,2]
[372336812,1752598238739,-460.0,0.00019996,2]
[372336813,1752598238748,-460.0,0.00019996,2]
[372336814,1752598238757,-460.0,0.00019996,2]
[372336815,1752598238766,-460.41452723,0.00019996,2]
[372336816,1752598238778,-460.0,0.00019996,2]
[372336817,1752598238788,-460.0,0.00019996,2]
[372336818,1752598238798,-460.0,0.00019996,2]
[372336819,1752598238807,-460.0,0.00019996,2]
[372336820,1752598238817,-460.0,0.00019996,2]
[372336821,1752598238826,-500.0,0.00019996,2]
[372336822,1752598238837,-500.0,0.00019996,2]
[372336823,1752598238846,-500.0,0.00019996,2]
[372336825,1752598238855,-500.0,0.00019996,2]
[372336827,1752598238864,-500.0,0.00019996,2]
[372336829,1752598238874,-500.0,0.00019996,2]
[372336831,1752598238883,-500.0,0.00019996,2]
[372336833,1752598238893,-254.24941345,0.00019996,2]
[372336835,1752598238902,-599.94650325,0.00019996,2]
[372336837,1752598238911,-500.0,0.00019996,2]
[372336839,1752598238921,-500.0,0.00019996,2]
[372336841,1752598238931,-500.0,0.00019996,2]
[372336843,1752598238940,-500.0,0.00019996,2]
[372336844,1752598238950,-500.0,0.00019996,2]
[372336847,1752598238960,-500.0,0.00019996,2]
[372336848,1752598238969,-500.0,0.00019996,2]
[372336850,1752598238979,-500.0,0.00019996,2]
[372336852,1752598238988,-500.0,0.00019996,2]
[372336854,1752598238998,-460.0,0.00019997,2]
[372336856,1752598239008,-433.71062441,0.00019997,2]
[372336859,1752598239020,-26.28937559,0.00019997,2]
[372336861,1752598239031,-460.0,0.00019997,2]
[372336863,1752598239040,-460.0,0.00019997,2]
[372336865,1752598239052,-460.0,0.00019997,2]
[372336866,1752598239061,-120.4000974,0.00019997,2]
[372336889,1752598240011,-339.5999026,0.00019997,2]
[372336890,1752598240021,-460.0,0.00019997,2]
[372336891,1752598240031,-460.0,0.00019997,2]
[372336892,1752598240041,-460.0,0.00019997,2]
[372336893,1752598240053,-460.0,0.00019997,2]
[372336894,1752598240063,-224.26,0.00019997,2]
[372336895,1752598240072,-460.0,0.00019997,2]
[372336896,1752598240081,-460.0,0.00019997,2]
[372336897,1752598240091,-460.0,0.00019997,2]
[372336898,1752598240101,-460.0,0.00019997,2]
[372336899,1752598240110,-460.0,0.00019997,2]
[372336900,1752598240120,-460.0,0.00019997,2]
[372336901,1752598240131,-460.0,0.00019997,2]
[372336902,1752598240141,-460.0,0.00019997,2]
[372336903,1752598240151,-460.0,0.00019997,2]
[372336904,1752598240160,-460.0,0.00019997,2]
[372336905,1752598240169,-460.0,0.00019997,2]
[372336906,1752598240180,-460.0,0.00019997,2]
[372336907,1752598240189,-460.0,0.00019997,2]
[372336908,1752598240199,-460.0,0.00019997,2]
[372336909,1752598240208,-460.0,0.00019997,2]
[372336910,1752598240218,-460.0,0.00019997,2]
[372336911,1752598240227,-321.8026224,0.00019997,2]
[372336912,1752598240240,-138.1973776,0.00019997,2]
[372336913,1752598240250,-460.0,0.00019997,2]
[372336914,1752598240259,-460.0,0.00019997,2]
[372336915,1752598240269,-1047.51,0.00019997,2]
[372336916,1752598240283,-1047.51,0.00019997,2]
[372336917,1752598240293,-1047.51,0.00019997,2]
[372336918,1752598240303,-1047.51,0.00019997,2]
[372336919,1752598240313,-460.0,0.00019997,2]
[372336920,1752598240322,-460.0,0.00019997,2]
[372336921,1752598240333,-460.0,0.00019997,2]
[372336922,1752598240343,-460.0,0.00019997,2]
[372336923,1752598240353,-460.0,0.00019997,2]
[372336924,1752598240362,-460.0,0.00019997,2]
[372336925,1752598240372,-460.76796438,0.00019997,2]
[372336926,1752598240382,-460.0,0.00019997,2]
[372336927,1752598240391,-460.0,0.00019997,2]
[372336928,1752598240400,-460.0,0.00019997,2]
[372336929,1752598240410,-460.0,0.00019997,2]
[372336930,1752598240420,-460.0,0.00019997,2]
[372336931,1752598240429,-60.78195802,0.00019997,2]
[372336969,1752598243142,-4913.815909,0.00019996,2]
[372336975,1752598246078,-2343.86365418,0.00019996,2]
[372336997,1752598912198,1063.0604465,0.00018086,2]
[372336999,1752598926978,158.0,0.00024,120]
[372337000,1752598928405,158.0,0.000251,120]
[372337001,1752598930140,158.0,0.000262,120]
[372337003,1752598939422,409.0,0.00027397,120]
[372337009,1752598997838,400.835234,0.00018086,2]
[372337010,1752598998684,161.254849,0.00013699,2]
[372337020,1752599139131,-1190.75365148,0.00018838,2]
[372337021,1752599151295,-9.24634852,0.00018838,2]
[372337022,1752599151321,-170.83808813,0.00018839,2]
[372337024,1752599249099,-300.0,0.00018838,2]
[372337025,1752599249123,-129.16191187,0.00018839,2]
[372337026,1752599249145,-300.0,0.00018839,2]
[372337027,1752599249166,-300.0,0.00018839,2]
[372337028,1752599249190,-300.0,0.00018839,2]
[372337029,1752599249212,-1200.0,0.00018839,2]
[372337030,1752599249233,-5086.73053313,0.0001884,2]
[372337032,1752599254095,-537.10808412,0.0001884,2]
[372337034,1752599290740,-6949.29302985,0.0001884,2]
[372337035,1752599290769,-150.0,0.000189,2]
[372337036,1752599290800,-300.0,0.00018994,2]
[372337037,1752599290821,-6949.29302985,0.00018995,2]
[372337038,1752599290832,-150.0,0.00018995,2]
[372337039,1752599290844,-300.0,0.00018995,2]
[372337040,1752599290855,-2600.70697005,0.00018995,2]
[372337041,1752599290864,-500.0,0.00019173,2]
[372337042,1752599290874,-500.0,0.00019173,2]
[372337043,1752599290883,-1600.70697025,0.00019173,2]
[372337044,1752599290914,-20000.0,0.00019173,2]
[372337045,1752599291082,-20000.0,0.00019173,2]
[372337046,1752599291295,-8399.29302975,0.00019173,2]
[372337047,1752599291326,-500.0,0.00019177,2]
[372337048,1752599291357,-177.77183369,0.00019177,2]
[372337049,1752599291388,-425.57298626,0.00019177,2]
[372337050,1752599291420,-494.7243006,0.00019177,2]
[372337051,1752599291437,-5.2756994,0.00019177,2]
[372337052,1752599291447,-500.0,0.00019177,2]
[372337053,1752599291457,-564.99243954,0.00019177,2]
[372337054,1752599291467,-500.0,0.00019177,2]
[372337055,1752599291476,-500.0,0.00019177,2]
[372337056,1752599291486,-596.37425373,0.00019177,2]
[372337057,1752599291495,-1228.77863969,0.00019178,2]
[372337058,1752599291504,-460.0,0.00019178,2]
[372337059,1752599291514,-460.0,0.00019178,2]
[372337060,1752599291523,-460.0,0.00019178,2]
[372337061,1752599291533,-261.022936,0.00019178,2]
[372337062,1752599291543,-460.0,0.00019178,2]
[372337063,1752599291553,-460.0,0.00019178,2]
[372337064,1752599291563,-460.0,0.00019178,2]
[372337065,1752599291572,-460.0,0.00019178,2]
[372337066,1752599291582,-460.0,0.00019178,2]
[372337067,1752599291591,-483.14235477,0.00019178,2]
[372337068,1752599291601,-79.70670662,0.00019178,2]
[372337069,1752599291612,-380.29329338,0.00019178,2]
[372337070,1752599291622,-119.70670662,0.00019178,2]
[372337071,1752599291633,-177.77183369,0.00019178,2]
[372337072,1752599291648,-162.52145969,0.00019178,2]
[372337073,1752599291781,-226.23570098,0.00019178,2]
[372337074,1752599291791,-36.81582559,0.00019178,2]
[372337075,1752599291803,-423.18417441,0.00019178,2]
[372337076,1752599291813,-76.81582559,0.00019178,2]
[372337077,1752599291846,-193.25970647,0.00019178,2]
[372337078,1752599291877,-460.0,0.00019178,2]
[372337079,1752599291907,-460.0,0.00019178,2]
[372337080,1752599291939,-460.0,0.00019178,2]
[372337081,1752599291968,-460.0,0.00019178,2]
[372337082,1752599291998,-460.0,0.00019178,2]
[372337083,1752599292028,-460.0,0.00019178,2]
[372337084,1752599292057,-460.0,0.00019178,2]
[372337085,1752599292087,-460.0,0.00019178,2]
[372337086,1752599292116,-460.0,0.00019178,2]
[372337087,1752599292146,-460.0,0.00019178,2]
[372337088,1752599292176,-460.0,0.00019178,2]
[372337089,1752599292205,-460.0,0.00019178,2]
[372337090,1752599292233,-462.59877099,0.00019178,2]
[372337091,1752599292263,-460.0,0.00019178,2]
[372337092,1752599292293,-460.0,0.00019178,2]
[372337093,1752599292323,-460.0,0.00019178,2]
[372337094,1752599292353,-460.0,0.00019178,2]
[372337095,1752599292387,-460.0,0.00019178,2]
[372337096,1752599292420,-460.0,0.00019178,2]
[372337097,1752599292453,-460.0,0.00019178,2]
[372337098,1752599292484,-462.72318176,0.00019178,2]
[372337099,1752599292524,-460.0,0.00019178,2]
[372337100,1752599292553,-460.0,0.00019178,2]
[372337101,1752599292583,-460.0,0.00019178,2]
[372337102,1752599292614,-460.0,0.00019178,2]
[372337103,1752599292643,-460.0,0.00019178,2]
[372337104,1752599292675,-460.0,0.00019178,2]
[372337105,1752599292703,-460.0,0.00019178,2]
[372337106,1752599292734,-460.0,0.00019178,2]
[372337107,1752599292763,-175.26911241,0.00019178,2]
[372337108,1752599292792,-460.0,0.00019178,2]
[372337109,1752599292821,-460.0,0.00019178,2]
[372337110,1752599292850,-460.0,0.00019178,2]
[372337111,1752599292877,-460.0,0.00019178,2]
[372337112,1752599292906,-460.0,0.00019178,2]
[372337113,1752599292939,-460.0,0.00019178,2]
[372337114,1752599292969,-460.0,0.00019178,2]
[372337115,1752599292998,-460.0,0.00019178,2]
[372337116,1752599293026,-460.0,0.00019178,2]
[372337117,1752599293054,-460.0,0.00019178,2]
[372337118,1752599293082,-461.50586275,0.00019178,2]
[372337119,1752599293111,-460.0,0.00019178,2]
[372337120,1752599293139,-460.0,0.00019178,2]
[372337121,1752599293159,-193.25970647,0.00019178,2]
[372337122,1752599293173,-266.74029353,0.00019178,2]
[372337123,1752599293183,-193.25970647,0.00019178,2]
[372337124,1752599293194,-266.74029353,0.00019178,2]
[372337125,1752599293203,-193.25970647,0.00019178,2]
[372337126,1752599293214,-266.74029353,0.00019178,2]
[372337127,1752599293223,-193.25970647,0.00019178,2]
[372337128,1752599293235,-266.74029353,0.00019178,2]
[372337129,1752599293244,-193.25970647,0.00019178,2]
[372337130,1752599293255,-266.74029353,0.00019178,2]
[372337131,1752599293265,-193.25970647,0.00019178,2]
[372337132,1752599293276,-266.74029353,0.00019178,2]
[372337133,1752599293285,-193.25970647,0.00019178,2]
[372337134,1752599293319,-266.74029353,0.00019178,2]
[372337135,1752599293348,-460.0,0.00019178,2]
[372337136,1752599293382,-460.0,0.00019178,2]
[372337137,1752599293411,-460.0,0.00019178,2]
[372337138,1752599293444,-460.0,0.00019178,2]
[372337139,1752599293473,-460.0,0.00019178,2]
[372337140,1752599293501,-460.0,0.00019178,2]
[372337141,1752599293531,-460.0,0.00019178,2]
[372337142,1752599293559,-460.0,0.00019178,2]
[372337143,1752599293589,-460.0,0.00019178,2]
[372337144,1752599293619,-460.0,0.00019178,2]
[372337145,1752599293648,-460.0,0.00019178,2]
[372337146,1752599293681,-460.0,0.00019178,2]
[372337147,1752599293710,-460.0,0.00019178,2]
[372337148,1752599293740,-460.36871305,0.00019178,2]
[372337149,1752599293772,-460.0,0.00019178,2]
[372337150,1752599293802,-460.0,0.00019178,2]
[372337151,1752599293831,-460.0,0.00019178,2]
[372337152,1752599293861,-460.0,0.00019178,2]
[372337153,1752599293891,-460.0,0.00019178,2]
[372337154,1752599293922,-460.0,0.00019178,2]
[372337155,1752599293951,-460.79701118,0.00019178,2]
[372337156,1752599293972,-460.0,0.00019178,2]
[372337157,1752599293984,-460.0,0.00019178,2]
[372337158,1752599293997,-460.0,0.00019178,2]
[372337159,1752599294009,-460.0,0.00019178,2]
[372337160,1752599294021,-460.0,0.00019178,2]
[372337161,1752599294032,-460.0,0.00019178,2]
[372337162,1752599294167,-460.0,0.00019178,2]
[372337163,1752599294197,-460.54,0.00019178,2]
[372337164,1752599294227,-872.92,0.00019178,2]
[372337165,1752599294256,-460.0,0.00019178,2]
[372337166,1752599294286,-460.0,0.00019178,2]
[372337167,1752599294317,-505.51615453,0.00019178,2]
[372337168,1752599294346,-460.0,0.00019178,2]